fUST/lending_fUST_20241120
["ID","MTS","AMOUNT","RATE_DAILY","PERIOD"]
[342674087,1732037454469,-403.30356,0.00021917,2]
[342674088,1732037454479,-172.643863,0.00021917,2]
[342674089,1732037454490,-500.0,0.00021917,7]
[342674090,1732037454499,-501.08251477,0.00021917,7]
[342674091,1732037454508,-317.147359,0.00021917,2]
[342674092,1732037454518,-403.30356,0.00021917,2]
[342674093,1732037454527,-403.30356,0.00021917,2]
[342674094,1732037454536,-317.147359,0.00021917,2]
[342674095,1732037454545,-500.0,0.00021917,7]
[342674096,1732037454555,-317.147359,0.00021917,2]
[342674097,1732037454565,-403.30356,0.00021917,2]
[342674098,1732037454574,-209.664769,0.00021917,2]
[342674099,1732037454583,-403.30356,0.00021917,2]
[342674100,1732037454592,-317.147359,0.00021917,2]
[342674101,1732037454601,-209.664769,0.00021917,2]
[342674102,1732037454696,-500.0,0.00021917,7]
[342674103,1732037454705,-403.30356,0.00021917,2]
[342674104,1732037454714,-317.147359,0.00021917,2]
[342674105,1732037454724,-500.0,0.00021917,7]
[342674106,1732037454734,-403.30356,0.00021917,2]
[342674107,1732037454743,-209.664769,0.00021917,2]
[342674108,1732037454752,-403.30356,0.00021917,2]
[342674109,1732037454762,-209.664769,0.00021917,2]
[342674110,1732037454771,-403.30356,0.00021917,2]
[342674111,1732037454781,-209.664769,0.00021917,2]
[342674112,1732037454793,-403.30356,0.00021917,2]
[342674113,1732037454802,-209.664769,0.00021917,2]
[342674114,1732037454812,-500.0,0.00021917,7]
[342674115,1732037454822,-403.303558,0.00021917,2]
[342674116,1732037454831,-209.664769,0.00021917,2]
[342674117,1732037454841,-209.664769,0.00021917,2]
[342674118,1732037454851,-565.88,0.00021917,7]
[342674119,1732037454861,-317.147359,0.00021917,2]
[342674120,1732037454870,-317.147359,0.00021917,2]
[342674121,1732037454880,-101.80223014,0.00021917,2]
[342674122,1732037455062,-107.86253886,0.00021917,2]
[342674123,1732037455072,-317.14736657,0.00021917,2]
[342674124,1732037455081,-119.49009457,0.00021917,2]
[342674125,1732037455094,-90.17467443,0.00021917,2]
[342674126,1732037455104,-209.664769,0.00021917,2]
[342674127,1732037455113,-209.664769,0.00021917,2]
[342674128,1732037455123,-209.664769,0.00021917,2]
[342674129,1732037455132,-209.664769,0.00021917,2]
[342674130,1732037455142,-209.664769,0.00021917,2]
[342674131,1732037455151,-209.664769,0.00021917,2]
[342674132,1732037455161,-500.0,0.00021917,7]
[342674133,1732037455172,-209.664769,0.00021917,2]
[342674134,1732037455181,-209.664769,0.00021917,2]
[342674135,1732037455190,-500.0,0.00021917,7]
[342674136,1732037455199,-209.664769,0.00021917,2]
[342674137,1732037455208,-46.94673547,0.00021917,2]
[342674145,1732037848676,621.0,0.00014,5]
[342674453,1732038632425,-187.43538883,0.00013288,2]
[342674454,1732038632435,-105.97964151,0.00013422,2]
[342674455,1732038632450,-81.45574732,0.00013422,2]
[342674457,1732038632459,-400.0,0.00013973,2]
[342674458,1732038632468,-2372.78200839,0.00018,2]
[342674473,1732038638526,-187.43538883,0.00013155,2]
[342674474,1732038638536,-4642.84299161,0.00018,2]
[342674475,1732038638546,-162.750758,0.00019178,2]
[342674476,1732038638555,-300.0,0.00019408,2]
[342674477,1732038638565,-300.0,0.00019408,2]
[342674478,1732038638574,-24900.0,0.00019409,2]
[342674479,1732038638583,-862.5076006,0.00019549,2]
[342674480,1732038638592,-465.917748,0.00019793,2]
[342674481,1732038638602,-400.0,0.00020447,2]
[342674482,1732038638611,-161.21016,0.00020512,2]
[342674483,1732038638621,-420.0,0.00021145,2]
[342674484,1732038638630,-420.0,0.00021348,2]
[342674485,1732038638640,-2279.94620842,0.00021673,2]
[342674486,1732038638649,-868.46,0.00021707,3]
[342674487,1732038638658,-434.23,0.00021707,3]
[342674488,1732038638667,-217.12,0.00021707,3]
[342674489,1732038638676,-651.38,0.00021707,3]
[342674490,1732038638688,-760.55975739,0.00021707,2]
[342674491,1732038638698,-2279.9462084,0.00021709,2]
[342674492,1732038638707,-500.0,0.00021711,2]
[342674493,1732038638717,-421.49981525,0.00021711,2]
[342674494,1732038638730,-500.0,0.00021711,2]
[342674495,1732038638741,-500.0,0.00021711,2]
[342674497,1732038638752,-500.0,0.00021711,2]
[342674499,1732038638762,-582.66183189,0.00021711,2]
[342674501,1732038638772,-500.0,0.00021711,2]
[342674502,1732038638783,-500.0,0.00021711,2]
[342674503,1732038638792,-381.30224534,0.00021711,2]
[342674504,1732038638801,-500.0,0.00021711,2]
[342674505,1732038638811,-500.0,0.00021711,2]
[342674506,1732038638823,-500.0,0.00021711,2]
[342674507,1732038638833,-500.0,0.00021711,2]
[342674508,1732038638842,-500.0,0.00021711,2]
[342674509,1732038638851,-500.0,0.00021711,2]
[342674510,1732038638861,-500.0,0.00021711,2]
[342674511,1732038638871,-500.0,0.00021711,2]
[342674512,1732038638880,-500.0,0.00021711,2]
[342674513,1732038638890,-588.00653806,0.00021711,2]
[342674514,1732038638899,-500.0,0.00021711,2]
[342674515,1732038638909,-500.0,0.00021711,2]
[342674516,1732038638918,-500.0,0.00021711,2]
[342674517,1732038638928,-531.8335417,0.00021711,2]
[342674518,1732038638937,-500.0,0.00021711,2]
[342674519,1732038638946,-500.0,0.00021711,2]
[342674520,1732038638955,-500.0,0.00021711,2]
[342674521,1732038638965,-505.20463738,0.00021711,2]
[342674522,1732038638977,-59156.67113693,0.00021717,2]
[342674523,1732038638991,-1346.5,0.00021717,2]
[342674524,1732038639012,-561.2975462,0.00021717,2]
[342674525,1732038639029,-1536.92,0.00021717,2]
[342674635,1732038640295,-1323.4,0.00021717,2]
[342674638,1732038640320,-1080.99384694,0.00021717,2]
[342674650,1732038640421,-4378.39834451,0.00021717,2]
[342674711,1732038643451,-1000.0,0.00021717,2]
[342674744,1732038643815,-26637.045004,0.00021717,2]
[342674745,1732038643829,-887.89910999,0.00021717,2]
[342674746,1732038643841,-4973.41071895,0.00021717,2]
[342674747,1732038643852,-4250.2804268,0.00021717,2]
[342674834,1732038837236,2152.70352524,0.00014,5]
[342674919,1732039832675,-400.0,0.00013973,2]
[342674920,1732039832685,-1.0,0.00018,2]
[342674921,1732039832701,-907.01941054,0.00018,2]
[342674927,1732039838628,-6107.60558946,0.00018,2]
[342674929,1732039838640,-773.249785,0.00018815,2]
[342674931,1732039838651,-773.249785,0.000195,2]
[342674933,1732039838663,-300.0,0.00019678,2]
[342674935,1732039838673,-300.0,0.00019679,2]
[342674937,1732039838685,-24900.0,0.0001968,2]
[342674939,1732039838695,-1871.75287862,0.00019699,2]
[342674941,1732039838706,-670.15135867,0.00019799,2]
[342674943,1732039838717,-500.0,0.00019799,2]
[342674945,1732039838728,-500.0,0.00019799,2]
[342674947,1732039838738,-500.0,0.00019799,2]
[342674949,1732039838749,-500.0,0.00019799,2]
[342674951,1732039838765,-500.0,0.00019799,2]
[342674953,1732039838776,-500.0,0.00019799,2]
[342674954,1732039838786,-500.0,0.00019799,2]
[342674955,1732039838796,-500.0,0.00019799,2]
[342674956,1732039838806,-500.0,0.00019799,2]
[342674957,1732039838816,-500.0,0.00019799,2]
[342674958,1732039838826,-500.0,0.00019799,2]
[342674959,1732039838836,-500.0,0.00019799,2]
[342674960,1732039838847,-500.0,0.00019799,2]
[342674962,1732039838857,-500.0,0.00019799,2]
[342674964,1732039838866,-500.0,0.00019799,2]
[342674966,1732039838876,-604.68324552,0.00019799,2]
[342674967,1732039838886,-500.0,0.00019799,2]
[342674968,1732039838896,-500.0,0.00019799,2]
[342674969,1732039838905,-286.05372426,0.00019799,2]
[342674970,1732039838915,-500.0,0.00019799,2]
[342674971,1732039838924,-500.0,0.00019799,2]
[342674972,1732039838934,-259.95967234,0.00019799,2]
[342674973,1732039838944,-445.83849216,0.00019799,2]
[342674974,1732039838954,-500.0,0.00019799,2]
[342674975,1732039838963,-500.0,0.00019799,2]
[342674976,1732039838973,-23748.97582117,0.000198,2]
[342674977,1732039838983,-406.143164,0.00019982,2]
[342674978,1732039838992,-773.249785,0.00020185,2]
[342674979,1732039839003,-400.0,0.00020447,2]
[342674980,1732039839014,-1871.75287861,0.00020972,2]
[342674981,1732039839024,-10440.17597128,0.00021244,2]
[342674982,1732039839033,-420.0,0.00021434,2]
[342674983,1732039839043,-10440.17597128,0.00021551,2]
[342674984,1732039839052,-692.05,0.0002159,3]
[342674985,1732039839063,-346.02,0.0002159,3]
[342674986,1732039839073,-173.01,0.0002159,3]
[342674987,1732039839084,-13576.59467856,0.000216,2]
[342674988,1732039839096,-420.0,0.00021647,2]
[342674989,1732039839106,-500.0,0.00021673,2]
[342674990,1732039839115,-151.57548534,0.00021674,2]
[342674991,1732039839124,-53631.40597837,0.000217,2]
[342675009,1732039844285,-3879.56112383,0.000217,2]
[342675013,1732039844321,-485.6999999,0.000217,2]
[342675015,1732039844333,-4439.90372425,0.000217,2]
[342675017,1732039844346,-6132.8530071,0.000217,2]
[342675059,1732039846557,-327.332494,0.000217,2]
[342675087,1732039916326,501.3971017,0.00026,60]
[342675090,1732040422417,203.5200846,0.00014,5]
[342675194,1732041032755,-2856.4243029,0.000109,2]
[342675196,1732041032765,-187.43538883,0.00013833,2]
[342675198,1732041032774,-400.0,0.00013973,2]
[342675200,1732041032784,-300.0,0.00017999,2]
[342675202,1732041032794,-300.0,0.00017999,2]
[342675204,1732041032803,-4634.61693943,0.00018,2]
[342675206,1732041032815,-2381.00806057,0.00018,2]
[342675208,1732041032825,-162.750758,0.00019503,2]
[342675210,1732041032836,-257.1653298,0.00019511,2]
[342675212,1732041032845,-203.071582,0.00019622,2]
[342675214,1732041032855,-420.0,0.00019639,2]
[342675216,1732041032864,-420.0,0.00019799,2]
[342675218,1732041032874,-15958.70650371,0.0001999,2]
[342675220,1732041032884,-150.52107366,0.0002,7]
[342675222,1732041032893,-1164.2610527,0.0002,2]
[342675224,1732041032903,-446.76757245,0.00020253,2]
[342675226,1732041032912,-17759.01545645,0.00020253,2]
[342675228,1732041032923,-7140.98454355,0.00020253,2]
[342675230,1732041032934,-233.85369395,0.00020276,2]
[342675232,1732041032943,-493.98205468,0.00020276,2]
[342675233,1732041032953,-309.56152492,0.00020276,2]
[342675234,1732041032963,-195.55107471,0.00020276,2]
[342675235,1732041032973,-1403.81465901,0.00020277,2]
[342675236,1732041032983,-1289.27970828,0.00020377,2]
[342675237,1732041032992,-400.0,0.00020447,2]
[342675238,1732041033001,-161.21016,0.00020593,2]
[342675239,1732041033011,-243.68089207,0.00020833,2]
[342675240,1732041033020,-512.91698596,0.00020957,2]
[342675241,1732041033030,-523.1570006,0.00020973,2]
[342675242,1732041033041,-501.41789002,0.00020973,2]
[342675243,1732041033050,-326.97462653,0.00020973,2]
[342675244,1732041033060,-246.07203447,0.00020973,2]
[342675245,1732041033070,-501.48634937,0.00020973,2]
[342675246,1732041033083,-507.1586991,0.00020973,2]
[342675247,1732041033092,-500.0,0.00020973,2]
[342675248,1732041033102,-399.19874066,0.00020973,2]
[342675249,1732041033112,-500.0,0.00020973,2]
[342675250,1732041033122,-589.50200192,0.00020973,2]
[342675251,1732041033132,-500.0,0.00020973,2]
[342675252,1732041033142,-500.0,0.00020973,2]
[342675253,1732041033151,-373.5743523,0.00020973,2]
[342675254,1732041033161,-490.2,0.0002099,3]
[342675255,1732041033171,-245.1,0.0002099,3]
[342675256,1732041033181,-735.34,0.0002099,3]
[342675257,1732041033191,-129540.9830079,0.00021,2]
[342675258,1732041033203,-911.85352019,0.00021,2]
[342675259,1732041033215,-1476.51309837,0.00021,2]
[342675311,1732041039013,-46353.45278545,0.00021,2]
[342675312,1732041039025,-2721.34691134,0.00021,2]
[342675313,1732041039037,-349.41,0.00021,2]
[342675348,1732041040678,-114377.36486764,0.00021,2]
[342675394,1732041044411,-3998.53517974,0.00021,2]
[342675398,1732041044440,-502.81582034,0.00021,2]
[342675400,1732041044451,-3946.51276182,0.00021,2]
[342675402,1732041044462,-4057.30335374,0.00021,2]
[342675405,1732041044483,-411.700001,0.00021,2]
[342675506,1732041046924,-28335.51581286,0.00021,2]
[342675508,1732041046937,-6890.44425316,0.00021,2]
[342675791,1732042232060,-400.0,0.00013558,2]
[342675793,1732042232070,-250.26151516,0.00013973,2]
[342675795,1732042232082,-149.73848484,0.00013973,2]
[342675797,1732042232092,-7015.625,0.00018,2]
[342675799,1732042232101,-406.143164,0.00018445,2]
[342675801,1732042232110,-300.0,0.00018928,2]
[342675803,1732042232120,-300.0,0.00018928,2]
[342675805,1732042232129,-1200.89012634,0.00018929,2]
[342675948,1732042238094,-282.57623041,0.00018739,2]
[342675949,1732042238104,-23699.10987366,0.00018929,2]
[342675951,1732042238114,-1696.27604627,0.00019762,2]
[342675952,1732042238124,-670.15135867,0.00019862,2]
[342675953,1732042238134,-9795.22634406,0.00019862,2]
[342675954,1732042238143,-503.578,0.00020061,2]
[342675955,1732042238153,-500.0,0.00020075,2]
[342675956,1732042238162,-500.0,0.00020075,2]
[342675957,1732042238171,-500.0,0.00020075,2]
[342675958,1732042238182,-500.0,0.00020075,2]
[342675959,1732042238192,-500.0,0.00020075,2]
[342675960,1732042238201,-500.0,0.00020075,2]
[342675961,1732042238211,-500.0,0.00020075,2]
[342675962,1732042238221,-500.0,0.00020075,2]
[342675963,1732042238231,-500.0,0.00020075,2]
[342675964,1732042238241,-500.0,0.00020075,2]
[342675965,1732042238250,-500.0,0.00020075,2]
[342675966,1732042238259,-219.81565273,0.00020075,2]
[342675967,1732042238269,-500.0,0.00020075,2]
[342675968,1732042238279,-394.21492097,0.00020075,2]
[342675969,1732042238288,-500.0,0.00020075,2]
[342675970,1732042238298,-500.0,0.00020075,2]
[342675971,1732042238308,-500.0,0.00020075,2]
[342675972,1732042238317,-500.0,0.00020075,2]
[342675973,1732042238327,-500.0,0.00020075,2]
[342675974,1732042238337,-500.0,0.00020075,2]
[342675975,1732042238346,-501.25464294,0.00020075,2]
[342675976,1732042238355,-500.0,0.00020075,2]
[342675978,1732042238365,-500.0,0.00020075,2]
[342675980,1732042238375,-500.0,0.00020075,2]
[342675982,1732042238384,-500.0,0.00020075,2]
[342675984,1732042238393,-500.0,0.00020075,2]
[342675986,1732042238403,-500.0,0.00020075,2]
[342675988,1732042238412,-500.0,0.00020075,2]
[342675990,1732042238422,-194.95020644,0.00020075,2]
[342675993,1732042238446,-291.17090875,0.00020075,2]
[342675994,1732042238458,-500.0,0.00020075,2]
[342675996,1732042238467,-445.87793519,0.00020075,2]
[342676005,1732042238545,-54.12206481,0.00020075,2]
[342676007,1732042238554,-9795.22634406,0.00020078,2]
[342676009,1732042238564,-212.4704441,0.00020356,2]
[342676011,1732042238577,-9795.22634406,0.00020361,2]
[342676013,1732042238586,-212.4704441,0.000204,2]
[342676016,1732042238597,-400.0,0.00020447,2]
[342676018,1732042238607,-212.4704441,0.000205,2]
[342676020,1732042238617,-304.334027,0.000205,2]
[342676022,1732042238626,-420.0,0.00020633,2]
[342676024,1732042238636,-9795.22634407,0.00020776,2]
[342676026,1732042238646,-1616.59281482,0.000208,2]
[342676028,1732042238655,-420.0,0.0002082,2]
[342676030,1732042238665,-1616.59281478,0.00020825,2]
[342676032,1732042238675,-1616.59281478,0.0002085,2]
[342676034,1732042238684,-1616.59281478,0.00020875,2]
[342676035,1732042238694,-670.45,0.0002088,3]
[342676037,1732042238921,-446.94,0.0002089,3]
[342676039,1732042238931,-223.47,0.0002089,3]
[342676041,1732042238941,-26355.45192801,0.000209,2]
[342676043,1732042238952,-27879.77035655,0.000209,2]
[342676045,1732042238967,-2458.82915501,0.000209,2]
[342676120,1732042240000,-43467.20119633,0.000209,2]
[342676121,1732042240010,-257.0233585,0.000209,2]
[342676122,1732042240021,-303.9259434,0.000209,2]
[342676123,1732042240031,-1000.0,0.000209,2]
[342676124,1732042240040,-511.06954088,0.000209,2]
[342676125,1732042240051,-1616.59281478,0.000209,2]
[342676126,1732042240060,-604.88142155,0.00020973,2]
[342676127,1732042240071,-500.0,0.00020973,2]
[342676128,1732042240081,-500.0,0.00020973,2]
[342676129,1732042240091,-500.0,0.00020973,2]
[342676130,1732042240100,-323.38718627,0.00020973,2]
[342676131,1732042240110,-500.0,0.00020973,2]
[342676132,1732042240120,-208917.13460588,0.00021,2]
[342676154,1732042244087,-500.0,0.00020973,2]
[342676156,1732042244097,-4228.61383426,0.00021,2]
[342676159,1732042244110,-48321.75836886,0.00021,2]
[342676165,1732042244161,-11200.0,0.00021,2]
[342676167,1732042244172,-313839.598551,0.00021,2]
[342676169,1732042244183,-5272.26439408,0.00021,2]
[342676187,1732042245982,-9349.09732699,0.00021,2]
[342676293,1732043432240,-298.00087731,0.00013973,2]
[342676296,1732043432253,-101.99912269,0.00013973,2]
[342676298,1732043432269,-326.49535805,0.00018,2]
[342676300,1732043432281,-6689.12964195,0.00018,2]
[342676302,1732043432291,-257.1653298,0.00018768,2]
[342676304,1732043432301,-203.071582,0.00018907,2]
[342676306,1732043432312,-773.249785,0.00019157,2]
[342676308,1732043432322,-161.513634,0.00019522,2]
[342676310,1732043432332,-300.0,0.00019651,2]
[342676312,1732043432344,-402.862,0.00019653,2]
[342676314,1732043432353,-300.0,0.00019653,2]
[342676316,1732043432365,-24900.0,0.00019654,2]
[342676318,1732043432375,-1680.13476122,0.00019742,2]
[342676321,1732043432385,-773.249785,0.00019842,2]
[342676324,1732043432395,-500.0,0.00019999,2]
[342676327,1732043432406,-299.43891183,0.00019999,2]
[342676329,1732043432415,-500.0,0.00019999,2]
[342676331,1732043432425,-444.58384922,0.00019999,2]
[342676333,1732043432438,-4305.59812996,0.0002,2]
[342676385,1732043438370,-500.0,0.00019999,2]
[342676386,1732043438380,-500.0,0.00019999,2]
[342676387,1732043438390,-500.0,0.00019999,2]
[342676388,1732043438399,-500.0,0.00019999,2]
[342676389,1732043438408,-500.0,0.00019999,2]
[342676390,1732043438418,-500.0,0.00019999,2]
[342676391,1732043438427,-44.0,0.00019999,2]
[342676402,1732043440082,-24900.0,0.00019708,2]
[342676403,1732043440092,-456.0,0.00019999,2]
[342676404,1732043440101,-500.0,0.00019999,2]
[342676405,1732043440111,-500.0,0.00019999,2]
[342676406,1732043440120,-304.42149209,0.00019999,2]
[342676407,1732043440129,-500.0,0.00019999,2]
[342676408,1732043440138,-500.0,0.00019999,2]
[342676409,1732043440148,-286.31902585,0.00019999,2]
[342676410,1732043440157,-500.0,0.00019999,2]
[342676411,1732043440166,-500.0,0.00019999,2]
[342676412,1732043440175,-500.0,0.00019999,2]
[342676414,1732043440185,-500.0,0.00019999,2]
[342676415,1732043440195,-500.0,0.00019999,2]
[342676416,1732043440207,-500.0,0.00019999,2]
[342676417,1732043440217,-500.0,0.00019999,2]
[342676418,1732043440226,-49378.77187004,0.0002,2]
[342676419,1732043440246,-400.0,0.00020447,2]
[342676420,1732043440258,-212.1920262,0.00020521,2]
[342676421,1732043440272,-773.249785,0.00020527,2]
[342676422,1732043440283,-551.24416959,0.000207,2]
[342676423,1732043440293,-16456.36242439,0.00020712,2]
[342676424,1732043440305,-551.24416957,0.0002075,2]
[342676425,1732043440315,-500.0,0.00020773,2]
[342676426,1732043440324,-500.0,0.00020773,2]
[342676427,1732043440335,-180.24692125,0.00020773,2]
[342676428,1732043440345,-502.62769449,0.00020773,2]
[342676429,1732043440356,-338.12148605,0.00020773,2]
[342676430,1732043440367,-500.0,0.00020773,2]
[342676431,1732043440377,-500.0,0.00020773,2]
[342676432,1732043440387,-500.0,0.00020773,2]
[342676433,1732043440397,-670.41,0.0002079,3]
[342676434,1732043440407,-247.10715815,0.00020799,2]
[342676435,1732043440417,-341.99115055,0.00020799,2]
[342676436,1732043440426,-328.42974223,0.00020799,2]
[342676437,1732043440436,-287.96666347,0.00020799,2]
[342676438,1732043440446,-206142.93157333,0.000208,2]
[342676439,1732043440457,-1000.0,0.000208,2]
[342676440,1732043440467,-551.24416957,0.000208,2]
[342676441,1732043440477,-551.24416957,0.0002085,2]
[342676442,1732043440487,-136725.37162023,0.000209,2]
[342676443,1732043440497,-114338.71406876,0.000209,2]
[342676444,1732043440507,-150.112233,0.000209,3]
[342676445,1732043440517,-150.112233,0.000209,4]
[342676446,1732043440527,-150.112233,0.000209,4]
[342676447,1732043440536,-459.96258681,0.000209,2]
[342676448,1732043440546,-551.24416957,0.000209,2]
[342676449,1732043440555,-320.1458493,0.00020905,2]
[342676450,1732043440566,-500.0,0.00020973,2]
[342676451,1732043440576,-500.0,0.00020973,2]
[342676452,1732043440585,-500.0,0.00020973,2]
[342676453,1732043440595,-500.0,0.00020973,2]
[342676454,1732043440604,-500.0,0.00020973,2]
[342676455,1732043440614,-500.0,0.00020973,2]
[342676456,1732043440623,-173460.5181187,0.00021,2]
[342676475,1732043443853,-500.0,0.00020973,2]
[342676477,1732043443862,-8966.74688019,0.00021,2]
[342676479,1732043443874,-13009.50279154,0.00021,2]
[342676481,1732043443937,-807.6309325,0.00021,2]
[342676482,1732043443949,-28305.80500973,0.00021,2]
[342676503,1732043446001,-500.0,0.00020973,2]
[342676505,1732043446011,-128073.99788961,0.00021,2]
[342676514,1732043446092,-7879.90906526,0.00021,2]
[342676787,1732043652187,-955.26,0.00021907,15]
[342676789,1732043938293,400.0,0.00014,5]
[342676891,1732044632435,-400.0,0.00013973,2]
[342676892,1732044632445,-4149.99389984,0.00018,2]
[342676893,1732044632457,-1133.12684086,0.00018,2]
[342676937,1732044638423,-353.55892702,0.00018,2]
[342676940,1732044638465,-335.56296447,0.00018,2]
[342676943,1732044638476,-1043.38236781,0.00018,2]
[342676945,1732044638486,-161.513634,0.00019178,2]
[342676947,1732044638495,-203.071582,0.00019255,2]
[342676949,1732044638505,-142.77947349,0.00019341,2]
[342676951,1732044638518,-199.57118751,0.00019341,2]
[342676953,1732044638528,-162.1006256,0.00019496,2]
[342676955,1732044638537,-63.60218221,0.00019889,2]
[342677131,1732044640238,-236.39781779,0.00019889,2]
[342677133,1732044640248,-70.82218221,0.00019889,2]
[342677135,1732044640260,-229.17781779,0.00019889,2]
[342677137,1732044640271,-825.94356381,0.0001989,2]
[342677472,1732044643600,-1761.83365794,0.0001989,2]
[342677746,1732044646333,-431.23055,0.0001989,2]
[342679930,1732045247366,180.928,0.0002574,60]
[342679931,1732045305523,1837.99122699,0.00014,5]
[342679991,1732045832624,-400.0,0.00013973,2]
[342679992,1732045832634,-1431.84758679,0.00018,2]
[342679994,1732045832646,-599.99104687,0.00018,2]
[342679998,1732045832684,-4983.78636634,0.00018,2]
[342680000,1732045832693,-228.233774,0.00018225,2]
[342680001,1732045832703,-300.0,0.00018543,2]
[342680002,1732045832713,-300.0,0.00018543,2]
[342680003,1732045832722,-24900.0,0.00018544,2]
[342680004,1732045832732,-1709.41256584,0.00018892,2]
[342680005,1732045832741,-228.233774,0.0001891,2]
[342680006,1732045832751,-389.583,0.00019254,2]
[342680007,1732045832760,-228.233774,0.00019594,2]
[342680008,1732045832770,-256.04683246,0.00019989,2]
[342680009,1732045832779,-500.0,0.00019989,2]
[342680010,1732045832788,-420.70211398,0.00019989,2]
[342680011,1732045832798,-500.0,0.00019989,2]
[342680012,1732045832808,-500.0,0.00019989,2]
[342680013,1732045832817,-500.0,0.00019989,2]
[342680014,1732045832827,-500.0,0.00019989,2]
[342680015,1732045832837,-500.0,0.00019989,2]
[342680016,1732045832846,-500.0,0.00019989,2]
[342680017,1732045832856,-500.0,0.00019989,2]
[342680018,1732045832870,-500.0,0.00019989,2]
[342680019,1732045832879,-500.0,0.00019989,2]
[342680020,1732045832889,-500.0,0.00019989,2]
[342680021,1732045832899,-500.0,0.00019989,2]
[342680022,1732045832910,-500.0,0.00019989,2]
[342680023,1732045832920,-500.0,0.00019989,2]
[342680024,1732045832929,-450.0,0.00019989,2]
[342680025,1732045832940,-500.0,0.00019989,2]
[342680026,1732045832949,-500.0,0.00019989,2]
[342680027,1732045832959,-500.0,0.00019989,2]
[342680028,1732045832969,-500.0,0.00019989,2]
[342680029,1732045832978,-500.0,0.00019989,2]
[342680030,1732045832988,-500.0,0.00019989,2]
[342680031,1732045832997,-500.0,0.00019989,2]
[342680032,1732045833007,-583.22044992,0.00019989,2]
[342680033,1732045833021,-500.0,0.00019989,2]
[342680034,1732045833031,-558.35737701,0.00019989,2]
[342680035,1732045833041,-500.0,0.00019989,2]
[342680036,1732045833052,-500.0,0.00019989,2]
[342680037,1732045833063,-500.0,0.00019989,2]
[342680038,1732045833073,-500.0,0.00019989,2]
[342680039,1732045833083,-896.59672488,0.00019989,2]
[342680040,1732045833093,-26825.68593468,0.0001999,2]
[342680041,1732045833104,-1009.63344752,0.0002,2]
[342680042,1732045833117,-420.0,0.00020221,2]
[342680043,1732045833128,-1709.41256584,0.00020272,2]
[342680044,1732045833137,-420.0,0.00020397,2]
[342680045,1732045833147,-400.0,0.00020447,2]
[342680046,1732045833157,-310.50729247,0.00020852,2]
[342680047,1732045833168,-1000.0,0.000209,2]
[342680048,1732045833177,-413.96632812,0.000209,2]
[342680049,1732045833187,-500.0,0.00020973,2]
[342680050,1732045833197,-500.0,0.00020973,2]
[342680051,1732045833207,-500.0,0.00020973,2]
[342680052,1732045833216,-500.0,0.00020973,2]
[342680053,1732045833227,-670.41,0.0002099,3]
[342680054,1732045833237,-5592.97950174,0.00020999,2]
[342680055,1732045833246,-261.02441986,0.00020999,2]
[342680056,1732045833256,-172.9750107,0.00020999,2]
[342680057,1732045833266,-229.90081956,0.00020999,2]
[342680058,1732045833276,-239.39380539,0.00020999,2]
[342680059,1732045833287,-267227.89407853,0.00021,2]
[342680060,1732045833484,-1900.9847661,0.00021,2]
[342680061,1732045833496,-17248.54465152,0.00021,2]
[342680228,1732045840419,-23400.0,0.00021,2]
[342680231,1732045840432,-25513.00000412,0.00021,2]
[342680839,1732045846635,-174.0162799,0.00020999,2]
[342680840,1732045846644,-900.18503346,0.00020999,2]